Cogmind - Beta 10.2 @@@ ROGUE MODE // 2021.08.19 @ 00:02:05 Player: Gilgameshx13 Result: Destroyed by S-10 Pest with Light Assault Rifle Performance ------------- Evolutions (1) 500 Regions Visited (3) 600 Robots Destroyed (3) 15 Value Destroyed (54) 54 Prototype IDs (1) 20 Alien Tech Used (0) 0 Bonus (0) 0 TOTAL SCORE: 1189 Bonus ------- None Cogmind --------- Core Integrity 0/400 Matter 280/300 Energy 67/100 System Corruption 0% Temperature Cool (0) Movement Flying (32) Location -9/Storage Parts ------- > --- POWER (1) -------- (None) > --- PROPULSION (4) --- Improved Flight Unit Improved Flight Unit > --- UTILITY (2) ------ (None) > --- WEAPON (2) ------- (None) > --- INVENTORY (4) ---- Ion Engine Small Storage Unit Peak State ------------ > --- POWER ------------ Ion Engine > --- PROPULSION ------- Wheel Compact Wheel > --- UTILITY ---------- Small Storage Unit > --- WEAPON ----------- EM Pulse Gun Light Assault Rifle > --- INVENTORY -------- Ion Engine Aluminum Leg Aluminum Leg [Rating: 6] Favorites ----------- Power Ion Engine Engine Ion Engine Propulsion Wheel Wheel Wheel Flight Unit Improved Flight Unit Utility Small Storage Unit Storage Small Storage Unit Weapon Light Assault Rifle Energy Gun EM Pulse Gun Ballistic Gun Light Assault Rifle Build | -11 -10 -9 -9 ------- Run | Scr Mat Mat Sto Slots Evolved 2 | . . 2 . Power . | . . . . Propulsion 2 | . . 2 . Utility . | . . . . Weapon . | . . . . Parts Attached 10 | 6 2 . 2 Power 1 | 1 . . . Engine 1 | 1 . . . Core . | . . . . Reactor . | . . . . Propulsion 5 | 2 1 . 2 Treads . | . . . . Leg . | . . . . Wheel 3 | 2 1 . . Hover . | . . . . Flight 2 | . . . 2 Utility 1 | 1 . . . Device . | . . . . Storage 1 | 1 . . . Processor . | . . . . Hackware . | . . . . Protection . | . . . . Artifact . | . . . . Weapon 3 | 2 1 . . Energy Gun 1 | 1 . . . Energy Cannon . | . . . . Ballistic Gun 2 | 1 1 . . Ballistic Cannon . | . . . . Launcher . | . . . . Special Weapon . | . . . . Impact Weapon . | . . . . Slashing Weapon . | . . . . Piercing Weapon . | . . . . Special Melee Weapon . | . . . . Unidentified Prototypes 1 | . . . 1 Parts Lost 7 | . 4 3 . Power 1 | . . 1 . Propulsion 3 | . 2 1 . Utility . | . . . . Weapon 3 | . 2 1 . Highest Loss Streak 3 | . 3 3 . Average Slot Usage (%) 53 | . 79 29 3 Engine 9 | . 14 7 . Wheel 16 | . 25 7 . Storage 9 | . 14 7 . Energy Gun 4 | . 6 . . Ballistic Gun 12 | . 18 7 . Naked Turns 69 | . . 7 62 Heaviest Build 12 | 12 12 10 . Greatest Support 26 | 26 26 10 12 Greatest Overweight (x) 1 | . . 1 . Average Overweight (x) . | . . . . Largest Inventory Capacity 6 | 6 6 6 4 Average Capacity 5 | 4 6 5 4 Most Carried 4 | 4 4 4 4 Average Carried 3 | 1 3 3 3 Final Capacity 6 | 6 6 4 4 Final Carried 4 | 4 3 4 2 Class Distribution -------------------- 100% | Mutant Dominant Class ---------------- Mutant | -10/Materials Mutant | -9/Materials Mutant | -9/Storage Resources | -11 -10 -9 -9 ----------- Run | Scr Mat Mat Sto Matter Collected 296 | 233 63 . . Remotely . | . . . . Salvage Created 84 | . 65 19 . Parts 8 | . 5 3 . Haulers Intercepted . | . . . . Recyclers Shooed . | . . . . Parts Field Recycled . | . . . . Retrieved Matter . | . . . . Parts Self-Destructed . | . . . . Prevented . | . . . . Kills | -11 -10 -9 -9 ------- Run | Scr Mat Mat Sto Combat Hostiles Destroyed 3 | . 2 1 . Guns 3 | . 2 1 . Classes Destroyed 2 | . 2 . . Swarmer 2 | . 1 1 . Grunt 1 | . 1 . . Best Kill Streak 1 | . 1 1 . Combat Bots Only 1 | . 1 1 . Max Kills in Single Turn 1 | . 1 1 . Gunslinging . | . . . . Exploded . | . . . . Melee . | . . . . Uniques/NPCs Destroyed . | . . . . Combat | -11 -10 -9 -9 -------- Run | Scr Mat Mat Sto Damage Taken 1008 | . 545 63 400 Core 597 | . 191 6 400 Absorbed by Shields . | . . . . Core Remaining (%) 61 | 100 23 . . Volleys Fired 25 | . 23 2 . Largest 2 | . 2 1 . Hottest 60 | . 60 20 . Shots Fired 41 | . 39 2 . Gun 41 | . 39 2 . Cannon . | . . . . Launcher . | . . . . Special . | . . . . Kinetic 30 | . 28 2 . Thermal . | . . . . Explosive . | . . . . Electromagnetic 11 | . 11 . . Robot Hit Streak 6 | . 6 2 . Robot Miss Streak 5 | . 5 . . Penetration Max . | . . . . Secondary Targets . | . . . . Shots Hit Robots 23 | . 21 2 . Core Hits 6 | . 5 1 . Critical Hits . | . . . . Critical Kills . | . . . . Critical Parts Destroyed . | . . . . Melee Attacks . | . . . . Impact . | . . . . Slashing . | . . . . Piercing . | . . . . Sneak Attacks . | . . . . Combat Hostiles . | . . . . Follow-up Attacks . | . . . . Damage Inflicted 223 | . 192 18 13 Guns 210 | . 192 18 . Cannons . | . . . . Explosions . | . . . . Melee . | . . . . Ramming 13 | . . . 13 Kinetic 125 | . 107 18 . Thermal . | . . . . Explosive . | . . . . Electromagnetic 85 | . 85 . . Impact . | . . . . Slashing . | . . . . Piercing . | . . . . Highest Corruption . | . . . . Average Corruption . | . . . . Corruption Purged . | . . . . Overload Shots . | . . . . Overflow Damage . | . . . . Projectiles . | . . . . Explosions . | . . . . Melee . | . . . . Knockbacks . | . . . . Impact . | . . . . Kinetic . | . . . . Secondary . | . . . . Self-Inflicted Damage 6 | . . . 6 Shots . | . . . . Rammed 3 | . . . 3 Targets Rammed 3 | . . . 3 Kicked . | . . . . Crushed . | . . . . Highest Temperature 90 | . 90 . . Average Temperature 36 | . 36 . . Received Heat Transfer 198 | . 150 . 48 Siege Activations . | . . . . Robots Corrupted . | . . . . Combat Hostiles . | . . . . Parts Fried . | . . . . Impact Corruptions . | . . . . Robots Melted . | . . . . Combat Hostiles . | . . . . Parts Melted . | . . . . Heat Transferred . | . . . . Parts Sabotaged . | . . . . Parts Stolen . | . . . . Parts Stripped . | . . . . Power Chain Reactions . | . . . . Missiles Intercepted . | . . . . Alert | -11 -10 -9 -9 ------- Run | Scr Mat Mat Sto Peak Influence 65 | . 65 38 29 Initial 18 | . . 18 7 Average 18 | . 22 19 18 Maximum Alert Level . | . . . . Low Security (%) 100 | 100 100 100 100 Level 1 . | . . . . Level 2 . | . . . . Level 3 . | . . . . Level 4 . | . . . . Level 5 . | . . . . High Security . | . . . . Max Security . | . . . . Squads Dispatched 1 | . 1 . . Investigation 1 | . 1 . . Extermination . | . . . . Reinforcement . | . . . . Assault . | . . . . Garrison . | . . . . Intercept . | . . . . Construction Impeded . | . . . . Haulers Reinforced . | . . . . Stealth | -11 -10 -9 -9 --------- Run | Scr Mat Mat Sto Distress Signals 2 | . . . 2 Communications Jammed . | . . . . Distress Signals . | . . . . Times Spotted 27 | . 12 3 12 Peak Tracking Total 11 | . 6 3 11 Tactical Retreats 1 | . 1 . . Traps | -11 -10 -9 -9 ------- Run | Scr Mat Mat Sto Traps Triggered 3 | . 1 . 2 Indirectly . | . . . . Trap Hack Attempts . | . . . . Triggered . | . . . . Disarmed . | . . . . Reprogrammed . | . . . . Reused . | . . . . Traps Extracted . | . . . . Installed . | . . . . Triggered . | . . . . Machines | -11 -10 -9 -9 ---------- Run | Scr Mat Mat Sto Machines Disabled . | . . . . Max in Single Turn . | . . . . Machines Sabotaged . | . . . . Garrisons Compromised . | . . . . Overloaded Fab Kills . | . . . . Fab Network Shutdowns . | . . . . Hacking | -11 -10 -9 -9 --------- Run | Scr Mat Mat Sto Machines Accessed 1 | . . . 1 Terminals 1 | . . . 1 Fabricators . | . . . . Repair Stations . | . . . . Recycling Units . | . . . . Scanalyzers . | . . . . Garrison Access . | . . . . Total Hacks 2 | . . . 2 Successful 1 | . . . 1 Failed 1 | . . . 1 Catastrophic . | . . . . Database Lockouts . | . . . . Manual . | . . . . Terminals 2 | . . . 2 Fabricators . | . . . . Repair Stations . | . . . . Recycling Units . | . . . . Scanalyzers . | . . . . Garrison Access . | . . . . Terminal Hacks 1 | . . . 1 Open Door 1 | . . . 1 Fabricator Hacks . | . . . . Repair Station Hacks . | . . . . Recycling Unit Hacks . | . . . . Scanalyzer . | . . . . Garrison Access Hacks . | . . . . Unauthorized Hacks . | . . . . Terminals . | . . . . Fabricators . | . . . . Repair Stations . | . . . . Recycling Units . | . . . . Scanalyzers . | . . . . Garrison Access . | . . . . Data Cores Recovered . | . . . . Used . | . . . . Hacking Detections 1 | . . . 1 Full Trace Events 1 | . . . 1 Feedback Events . | . . . . Feedback Blocked . | . . . . Robot Schematics Acquired . | . . . . Robots Built . | . . . . Matter . | . . . . Time . | . . . . Total Robot Build Rating . | . . . . Part Schematics Acquired . | . . . . Parts Built . | . . . . Matter . | . . . . Time . | . . . . Total Part Build Rating . | . . . . Parts Repaired . | . . . . Time . | . . . . Parts Recycled . | . . . . Recycled Matter . | . . . . Retrieved Matter . | . . . . Retrieved Components . | . . . . Parts Scanalyzed . | . . . . Part Schematics Acquired . | . . . . Parts Damaged . | . . . . Bothacking | -11 -10 -9 -9 ------------ Run | Scr Mat Mat Sto Used RIF Installer . | . . . . Robots Hacked . | . . . . Non-combat . | . . . . Combat . | . . . . Robot Hacks Applied . | . . . . Relay Couplers Released . | . . . . Robots Rewired . | . . . . Allies Hacked . | . . . . Hacks Repelled . | . . . . Allies | -11 -10 -9 -9 -------- Run | Scr Mat Mat Sto Total Allies . | . . . . Largest Group . | . . . . Highest-Rated Group . | . . . . Highest-Rated Ally . | . . . . Total Orders . | . . . . Ally Attacks . | . . . . Total Damage . | . . . . Kills . | . . . . Allies Corrupted . | . . . . Allies Melted . | . . . . Intel | -11 -10 -9 -9 ------- Run | Scr Mat Mat Sto Robot Analysis Total . | . . . . Derelict Logs Recovered . | . . . . Drone Launches . | . . . . Drone Recoveries . | . . . . Exploration | -11 -10 -9 -9 ------------- Run | Scr Mat Mat Sto Turns Passed 310 | 45 166 33 66 Spaces Moved 307 | 32 118 41 116 Core 130 | 2 . 16 112 Treads . | . . . . Legs . | . . . . Wheels 173 | 30 118 25 . Hover . | . . . . Flight 4 | . . . 4 Fastest Speed 32 | 50 80 50 32 Average Speed 71 | 86 88 70 49 Slowest Speed 100 | 90 100 100 50 Overloaded Moves . | . . . . Propulsion Burnouts . | . . . . Robots Hopped 1 | . . . 1 Cave-ins Triggered . | . . . . Exploration Rate (%) 19 | 3 32 7 37 Regions Visited 3 Branch Regions 1 Pre-discovered Areas . | . . . . Known Exits Taken . | . . . . Unknown Exits Taken 3 | 1 1 1 . Scrap Searched . | . . . . Spaces Dug . | . . . . Terrain Destroyed . | . . . . Melee . | . . . . Projectile . | . . . . AOE . | . . . . Terrain Rammed . | . . . . Walls Destroyed . | . . . . Machines Disabled . | . . . . Actions | -11 -10 -9 -9 --------- Run | Scr Mat Mat Sto Total 362 | 49 146 43 124 Wait 5 | 2 3 . . Move 302 | 31 117 40 114 Hop 1 | . . . 1 Pick Up 13 | 10 1 . 2 Fast Attach . | . . . . Attach 10 | 6 2 . 2 Detach 1 | . . 1 . Swap . | . . . . Drop 2 | . . . 2 Fire 25 | . 23 2 . Melee . | . . . . Ram 3 | . . . 3 Kick . | . . . . Crush . | . . . . Escape Stasis . | . . . . Rewire . | . . . . Trap . | . . . . Miscellaneous . | . . . . Route ------- -11/Scrapyard -10/Materials -9/Materials -9/Storage History --------- Turn | Location | Event 11 | -11/Scrapyard | Discovered new exit (range 15) 46 | -11/Scrapyard | Entered Materials 186 | -10/Materials | Core integrity fell below 50% 200 | -10/Materials | Discovered new exit (range 16) 212 | -10/Materials | Entered another Materials area 212 | -9/Materials | Evolved 2 slots: Propulsion x2 225 | -9/Materials | Lost 3 parts (2n1w) 241 | -9/Materials | Discovered new exit (range 8) 245 | -9/Materials | Entered Storage 269 | -9/Storage | Lost 3 parts (1p1n1w) 288 | -9/Storage | Core integrity fell below 50% 297 | -9/Storage | Core integrity fell below 20% 311 | -9/Storage | Destroyed by S-10 Pest with Light Assault Rifle Last Messages --------------- LOCATION=UNKNOWN GOAL=ESCAPE K-01 Serf collects debris. K-01 Serf cleans the Compression Vault. W-16 Scout sends out distress signal. K-01 Serf collects debris. Slammed into S-10 Pest. S-10 Pest destroyed. Triggered Blade Trap. Massive razor-sharp blades shoot up from within the floor. Triggered Blade Trap. Massive razor-sharp blades shoot up from within the floor. Connecting with Door Terminal... Current location identified: Storage >>Open Sealed Heavy Doors opened. Dropped Aluminum Leg. Acquired Prototype Flight Unit. Identified Imp. Flight Unit. Acquired Imp. Flight Unit. Map ----- +----------------------------------------------------+ | ???????????????????# ??# # """ "#???????? | | ???????????????????# ?# # """ ##???????? | | ???????????????????# # ! %+% #????????? | | ?????????????"" # # #%= #????????? | | ?????????????"" + / #% """ #????????? | | ?????????????"" # # # """ #????????? | | ?????????????"?????# # # """ #????????? | | ???????????????????# ?# [ # #????????? | | ???????????????????# ??# # #????????? | | ???????????????????#???# # """ ##???????? | | ???????????????????????# ] # """ #???????? | | ???????????????????????######## """ #???????? | | ???????????????????????# ?# +???????? | | ???????????????????????# # #???????? | | ???????????????????????# # #???????? | | ??????????????????????????? / ########???????? | | ???????????????????#??????????# #??????????????? | | ???????????????????# ?????????# #??????????????? | | ???????????????????# ????????# #??????????????? | | ???????????????????# ????????# #??????????????? | | ???????????????????# w ??????## ##?????????????? | | ???????????######### ####### ####??????????? | | ?????????? a g ????? | | ?????????? g T +???? | | ?????????? g ????? | | ?????????????##+#########@#### #### ????? | | ????????????????????????# T###+###???? ????? | | ????????????????????????#sss##??????????? ????? | | ????????????????????????# =#??????????????#?????? | | ????????????????????????#===#????????????????????? | | ????????????????????????#####????????????????????? | | ?????????????????????????????????????????????????? | | ?????????????????????????????????????????????????? | | ?????????????????????????????????????????????????? | | ?????????????????????????????????????????????????? | | ?????????????????????????????????????????????????? | | ?????????????????????????????????????????????????? | | ?????????????????????????????????????????????????? | | ?????????????????????????????????????????????????? | | | | | | | | | | | | | | | | | | | | | | | +----------------------------------------------------+ Best States ------------- Heat Dissipation 28 Energy Generation 10 Energy Capacity 250 Matter Stores 300 Matter Capacity 300 Sight Range 16 Terrain Scan Density 10 Evasion (%) 50 Item Schematics ----------------- None Robot Schematics ------------------ None Fabricated ------------ Nothing Alien Tech Used ----------------- None Achievements -------------- None Challenges ------------ None Game ------ Seed EnergyAdvancedAutocannon Manual? 0 Play Time 00:07:08 Cumulative 22.0 hours Start 2021.08.18 @ 23:56:37 End 2021.08.19 @ 00:02:05 Sessions 1 Manual Loads 0 Difficulty Rogue Special Mode None Game No. 62 Rogue 42 Adventurer 20 Explorer 0 Win Type - Total 1 Types 1/0/0/0/0/0/0/0/0 Lore% 20 Gallery% 43 Achievement% 30 Wizard Run 0 Options --------- ASCII 0 Keyboard 0 Movement Numpad Keybinds 0 Fullscreen 1 Font 18/SmallcapsGlow Map View 76x50 Tactical HUD 0 Map Filters NONE Filters NONE Steam 1 RUN: 92ca6e8c-8834-457d-a38f-aff56254feeb